bitfinex/quotes_BTCUSD_20260101
["timestamp","ask_amount","ask_price","bid_price","bid_amount"]
[1767232439418,0.01066944,88027.0,88014.0,0.05896607]
[1767232439602,0.01066944,88026.0,88014.0,0.05896607]
[1767232439803,0.0114,88028.0,88014.0,0.05896607]
[1767232439970,0.01067246,88027.0,88014.0,0.05896607]
[1767232440168,0.01067246,88026.0,88014.0,0.05896607]
[1767232440405,0.0114,88028.0,88014.0,0.05896607]
[1767232440635,0.01067266,88027.0,88014.0,0.05896607]
[1767232440927,0.01067266,88026.0,88014.0,0.05896607]
[1767232441087,0.0114,88028.0,88014.0,0.05841607]
[1767232441290,0.01067267,88027.0,88014.0,0.05841607]
[1767232441470,0.01067267,88026.0,88014.0,0.05841607]
[1767232441670,0.0114,88028.0,88014.0,0.05841607]
[1767232441895,0.01067281,88027.0,88015.0,0.00699619]
[1767232442094,0.01067281,88026.0,88015.0,0.00699619]
[1767232442311,0.0114,88028.0,88015.0,0.00699619]
[1767232442473,0.51231948,88025.0,88015.0,0.00699619]
[1767232444727,0.0114,88028.0,88016.0,0.05896607]
[1767232444914,0.0114,88028.0,88009.0,0.0114]
[1767232444915,0.01067285,88027.0,88017.0,0.00659623]
[1767232445113,0.01067285,88026.0,88010.0,0.05896607]
[1767232445315,0.0114,88028.0,88013.0,0.05896607]
[1767232445515,0.01067286,88027.0,88013.0,0.05896607]
[1767232445718,0.01067286,88026.0,88013.0,0.05896607]
[1767232445963,0.0114,88028.0,88013.0,0.05896607]
[1767232446164,0.01067286,88027.0,88013.0,0.05896607]
[1767232446513,0.01067286,88026.0,88013.0,0.05896607]
[1767232446682,0.01067286,88025.0,88013.0,0.05896607]
[1767232446897,0.0114,88028.0,88013.0,0.05896607]
[1767232447105,0.01067287,88027.0,88013.0,0.05896607]
[1767232447305,0.01067287,88026.0,88013.0,0.05896607]
[1767232447511,0.01067287,88025.0,88013.0,0.05896607]
[1767232447711,0.0114,88028.0,88013.0,0.05896607]
[1767232447921,0.0106728,88027.0,88013.0,0.05896607]
[1767232448122,0.0106728,88026.0,88013.0,0.05896607]
[1767232448271,0.0106728,88025.0,88013.0,0.05896607]
[1767232448471,0.0114,88028.0,88013.0,0.05896607]
[1767232448826,0.01067273,88027.0,88013.0,0.05896607]
[1767232448962,0.01067273,88026.0,88013.0,0.05896607]
[1767232449166,0.01067273,88025.0,88014.0,0.00705119]
[1767232449388,0.0114,88028.0,88014.0,0.00705119]
[1767232449583,0.01067268,88027.0,88014.0,0.00705119]
[1767232449801,0.01067268,88026.0,88014.0,0.00705119]
[1767232450015,0.01067268,88025.0,88014.0,0.00705119]
[1767232450316,0.07291216,88028.0,88015.0,0.00775631]
[1767232450531,0.01067264,88027.0,88015.0,0.00775631]
[1767232450743,0.51231948,88025.0,88015.0,0.00775631]
[1767232451092,0.01067264,88024.0,88015.0,0.00775631]
[1767232451293,0.51231948,88025.0,88015.0,0.00775631]
[1767232451493,0.01067257,88024.0,88015.0,0.00775631]
[1767232451709,0.51231948,88025.0,88015.0,0.00775631]
[1767232451915,0.01067257,88024.0,88013.0,0.05896607]
[1767232452114,0.52299205,88023.0,88013.0,0.05896607]
[1767232452310,0.01067257,88022.0,88013.0,0.05896607]
[1767232453486,0.51231948,88023.0,88013.0,0.05896607]
[1767232453775,0.010672,88022.0,88013.0,0.05896607]
[1767232453995,0.51231948,88023.0,88014.0,0.00705119]
[1767232454807,0.01067223,88022.0,88014.0,0.00705119]
[1767232455007,0.01067223,88021.0,88014.0,0.00705119]
[1767232455165,0.51231948,88023.0,88014.0,0.00705119]
[1767232455385,0.01067141,88022.0,88014.0,0.00705119]
[1767232455613,0.51231948,88023.0,88014.0,0.00705119]
[1767232455817,0.01067122,88022.0,88014.0,0.00705119]
[1767232456018,0.51231948,88023.0,88014.0,0.00705119]
[1767232456214,0.01067122,88022.0,88014.0,0.00705119]
[1767232456413,0.51231948,88023.0,88015.0,0.00661631]
[1767232456636,0.01067096,88022.0,88015.0,0.00661631]
[1767232456815,0.51231948,88023.0,88015.0,0.00661631]
[1767232456991,0.01067096,88022.0,88015.0,0.00661631]
[1767232457196,0.51231948,88025.0,88015.0,0.00661631]
[1767232457395,0.01067075,88024.0,88015.0,0.00661631]
[1767232457653,0.01067075,88023.0,88015.0,0.00661631]
[1767232457800,0.01067075,88022.0,88015.0,0.00661631]
[1767232457999,0.51231948,88025.0,88015.0,0.00661631]
[1767232458253,0.01067075,88024.0,88015.0,0.00661631]
[1767232458420,0.01067075,88023.0,88015.0,0.00661631]
[1767232458623,0.01067075,88022.0,88015.0,0.00661631]
[1767232458848,0.51231948,88025.0,88015.0,0.00661631]
[1767232459061,0.01067058,88024.0,88016.0,0.00655824]
[1767232459225,0.07291216,88028.0,88016.0,0.00655824]
[1767232459226,0.01067058,88023.0,88016.0,0.00655824]
[1767232459562,0.51231948,88026.0,88016.0,0.00655824]
[1767232459857,0.01067044,88025.0,88016.0,0.00655824]
[1767232460062,0.01067044,88024.0,88016.0,0.00655824]
[1767232460226,0.01067044,88023.0,88017.0,0.00655243]
[1767232460427,0.51231948,88027.0,88017.0,0.00655243]
[1767232460627,0.01067029,88026.0,88017.0,0.00655243]
[1767232460852,0.01067029,88025.0,88017.0,0.00655243]
[1767232461046,0.01067029,88024.0,88010.0,0.05944308]
[1767232461265,0.51231948,88020.0,88010.0,0.05944308]
[1767232464539,0.07291216,88028.0,88010.0,0.05944308]
[1767232464842,0.51231948,88020.0,88010.0,0.05944308]
[1767232468088,0.0001458,88039.0,88010.0,0.05944308]
[1767232468089,0.03411597,88038.0,88021.0,0.05944308]
[1767232468266,0.03411597,88038.0,88021.0,0.05758707]
[1767232468267,0.02207147,88037.0,88021.0,0.05758707]
[1767232468438,0.01067147,88036.0,88021.0,0.05758707]
[1767232468638,0.01067147,88035.0,88021.0,0.05758707]
[1767232468861,0.01012147,88034.0,88021.0,0.05944308]
[1767232469069,0.0114,88037.0,88021.0,0.05944308]
[1767232469874,0.0114,88037.0,88015.0,0.0228]
[1767232469875,0.00010596,88038.0,88037.0,0.000549]
[1767232470120,0.01150596,88038.0,88028.0,0.05944308]
[1767232470865,0.01095696,88038.0,88028.0,0.05944308]
[1767232471175,0.01095696,88038.0,88030.0,0.05856312]
[1767232471736,0.01095696,88038.0,88029.0,0.00594431]
[1767232471737,0.05809452,88055.0,88037.0,0.12727779]
[1767232471880,0.0114,88050.0,88040.0,0.51231948]
[1767232472694,0.0114,88050.0,88037.0,0.18672087]
[1767232472917,0.0114,88050.0,88040.0,0.51231948]
[1767232473115,0.0114,88049.0,88040.0,0.51231948]
[1767232473293,0.05809452,88055.0,88040.0,0.51231948]
[1767232473697,0.0005458,88057.0,88041.0,0.05944308]
[1767232473698,0.0114,88051.0,88041.0,0.05944308]
[1767232476001,0.0005458,88057.0,88041.0,0.05944308]
[1767232476200,0.0114,88051.0,88041.0,0.05944308]
[1767232476442,0.01040194,88051.0,88041.0,0.05944308]
[1767232476842,0.0005458,88057.0,88041.0,0.05944308]
[1767232477157,0.0114,88051.0,88043.0,0.05944308]
[1767232477539,0.01040194,88051.0,88043.0,0.05944308]
[1767232478124,0.0005458,88057.0,88043.0,0.05944308]
[1767232478353,0.0116,88052.0,88043.0,0.05944308]
[1767232478552,0.01060194,88052.0,88037.0,0.12727779]
[1767232478729,0.01060194,88052.0,88043.0,0.05944308]
[1767232479094,0.0005458,88057.0,88043.0,0.05944308]
[1767232479617,0.0004,88061.0,88042.0,0.51231948]
[1767232479817,0.0114,88063.0,88037.0,0.13867779]
[1767232479818,0.01134771,88063.0,88050.0,0.51231948]
[1767232481182,0.05809452,88064.0,88050.0,0.51231948]
[1767232481360,0.0114,88062.0,88050.0,0.51231948]
[1767232481564,0.0114,88062.0,88047.0,0.05944308]
[1767232481794,0.0114,88062.0,88050.0,0.51231948]
[1767232482019,0.06949452,88062.0,88050.0,0.51122048]
[1767232482235,0.06949452,88062.0,88037.0,0.13867779]
[1767232482236,0.06949452,88062.0,88042.0,0.05944308]
[1767232482449,0.05809452,88059.0,88040.0,0.51231948]
[1767232483809,0.05809452,88059.0,88041.0,0.05944308]
[1767232484200,0.0114,88058.0,88041.0,0.05944308]
[1767232484822,0.06949452,88058.0,88041.0,0.05944308]
[1767232490237,0.05474289,88064.0,88048.0,0.51231948]
[1767232490440,0.05474289,88064.0,88050.0,0.51231948]
[1767232490643,0.05688,88063.0,88050.0,0.51231948]
[1767232491200,0.05474289,88064.0,88050.0,0.51231948]
[1767232491201,0.05688,88062.0,88050.0,0.51231948]
[1767232492086,0.05688,88062.0,88050.0,0.51143984]
[1767232492492,0.05688,88062.0,88050.0,0.51231948]
[1767232497024,0.11151701,88062.0,88050.0,0.51231948]
[1767232497451,0.05463701,88061.0,88038.0,0.05916832]
[1767232497576,0.05463701,88059.0,88041.0,0.05916832]
[1767232498000,0.05463701,88059.0,88037.0,0.12727779]
[1767232498178,0.05463701,88059.0,88040.0,0.51231948]
[1767232499283,0.51231948,88060.0,88040.0,0.51231948]
[1767232499284,0.05463701,88057.0,88040.0,0.51231948]
[1767232501358,0.06529546,88056.0,88040.0,0.51231948]
[1767232501578,0.05463701,88056.0,88040.0,0.51231948]
[1767232502494,0.05688,88058.0,88041.0,0.05916832]
[1767232502701,0.0106605,88057.0,88041.0,0.05916832]
[1767232503001,0.0106605,88056.0,88041.0,0.05916832]
[1767232503199,0.05688,88058.0,88041.0,0.05916832]
[1767232503376,0.01066336,88057.0,88041.0,0.05916832]
[1767232503576,0.01066336,88056.0,88041.0,0.05916832]
[1767232503776,0.05688,88058.0,88041.0,0.05916832]
[1767232503976,0.01066336,88057.0,88041.0,0.05916832]
[1767232504324,0.01066336,88056.0,88041.0,0.05916832]
[1767232504463,0.05688,88058.0,88041.0,0.05916832]
[1767232504648,0.01066365,88057.0,88041.0,0.05916832]
[1767232505000,0.01066365,88056.0,88041.0,0.05916832]
[1767232505165,0.05688,88058.0,88041.0,0.05916832]
[1767232505365,0.01066382,88057.0,88041.0,0.05916832]
[1767232505681,0.01066382,88056.0,88041.0,0.05916832]
[1767232505878,0.05688,88058.0,88041.0,0.05916832]
[1767232506083,0.01066382,88057.0,88041.0,0.05916832]
[1767232506288,0.01066382,88056.0,88041.0,0.05916832]
[1767232506488,0.05688,88058.0,88041.0,0.05916832]
[1767232506783,0.01066398,88057.0,88041.0,0.05916832]
[1767232507051,0.01066398,88056.0,88041.0,0.05916832]
[1767232507241,0.05688,88058.0,88041.0,0.05916832]
[1767232507446,0.01066396,88057.0,88041.0,0.05916832]
[1767232507750,0.01066396,88056.0,88041.0,0.05916832]
[1767232507886,0.05688,88058.0,88041.0,0.05916832]
[1767232508090,0.01066396,88057.0,88041.0,0.05916832]
[1767232508290,0.01066396,88056.0,88041.0,0.05916832]
[1767232508499,0.05688,88058.0,88041.0,0.05916832]
[1767232508828,0.01066388,88057.0,88041.0,0.05916832]
[1767232509146,0.01066388,88056.0,88041.0,0.05916832]
[1767232509351,0.05688,88058.0,88041.0,0.05916832]
[1767232509549,0.01066425,88057.0,88041.0,0.05916832]
[1767232509748,0.01066425,88056.0,88041.0,0.05916832]
[1767232509947,0.05688,88058.0,88041.0,0.05916832]
[1767232509948,0.01066451,88055.0,88041.0,0.05916832]
[1767232510149,0.11151701,88058.0,88041.0,0.05916832]
[1767232510478,0.01066457,88057.0,88041.0,0.05916832]
[1767232510710,0.01066457,88056.0,88041.0,0.05916832]
[1767232510944,0.11151701,88058.0,88041.0,0.05916832]
[1767232511167,0.01066457,88057.0,88041.0,0.05916832]
[1767232511386,0.01066457,88056.0,88041.0,0.05916832]
[1767232511638,0.11151701,88058.0,88041.0,0.05916832]
[1767232511830,0.06530167,88057.0,88041.0,0.05916832]
[1767232512074,0.06530167,88056.0,88042.0,0.12727779]
[1767232512300,0.05463701,88056.0,88042.0,0.12727779]
[1767232516044,0.05688,88058.0,88042.0,0.12727779]
[1767232516045,0.05463701,88054.0,88042.0,0.12727779]
[1767232520704,0.05688,88058.0,88042.0,0.12727779]
[1767232521003,0.01066348,88057.0,88042.0,0.12727779]
[1767232521168,0.01066348,88056.0,88042.0,0.12727779]
[1767232521368,0.05667175,88057.0,88042.0,0.12727779]
[1767232521564,0.01066393,88056.0,88042.0,0.12727779]
[1767232521798,0.05667175,88057.0,88042.0,0.12727779]
[1767232521956,0.01066397,88056.0,88042.0,0.12727779]
[1767232522148,0.05667175,88057.0,88042.0,0.12727779]
[1767232522359,0.06733621,88056.0,88042.0,0.12727779]
[1767232522558,0.05667175,88056.0,88042.0,0.12727779]
[1767232525293,0.01066676,88055.0,88042.0,0.12727779]
[1767232525481,0.05667175,88056.0,88042.0,0.12727779]
[1767232525685,0.01066676,88055.0,88042.0,0.12727779]
[1767232525902,0.05667175,88056.0,88042.0,0.12727779]
[1767232526110,0.01066676,88055.0,88042.0,0.12727779]
[1767232526315,0.05667175,88056.0,88042.0,0.12727779]
[1767232526517,0.01066793,88055.0,88042.0,0.12727779]
[1767232526724,0.05667175,88056.0,88042.0,0.12727779]
[1767232527035,0.01066793,88055.0,88042.0,0.12727779]
[1767232527335,0.05667175,88056.0,88042.0,0.12727779]
[1767232527558,0.01066963,88055.0,88042.0,0.12727779]
[1767232527827,0.05667175,88056.0,88042.0,0.12727779]
[1767232528035,0.01066964,88055.0,88042.0,0.12727779]
[1767232528191,0.01066964,88054.0,88042.0,0.12727779]
[1767232528391,0.05667175,88056.0,88042.0,0.12727779]
[1767232528596,0.01066968,88055.0,88042.0,0.12727779]
[1767232528815,0.01066968,88054.0,88042.0,0.12727779]
[1767232529019,0.05667175,88056.0,88042.0,0.12727779]
[1767232529191,0.0106696,88055.0,88042.0,0.12727779]
[1767232529416,0.01066993,88054.0,88042.0,0.12727779]
[1767232529805,0.05667175,88056.0,88042.0,0.12727779]
[1767232529974,0.01066993,88055.0,88042.0,0.12727779]
[1767232530121,0.05667175,88056.0,88042.0,0.12727779]
[1767232530322,0.01066997,88055.0,88042.0,0.18373698]
[1767232530543,0.05667175,88056.0,88042.0,0.18373698]
[1767232530759,0.01066986,88055.0,88042.0,0.18373698]
[1767232530968,0.05667175,88056.0,88042.0,0.18373698]
[1767232531362,0.01012086,88055.0,88043.0,0.05645919]
[1767232531572,0.05688,88058.0,88043.0,0.05645919]
[1767232534548,0.0114,88057.0,88043.0,0.05645919]
[1767232534754,0.05688,88057.0,88043.0,0.05645919]
[1767232539109,0.11355175,88057.0,88043.0,0.05645919]
[1767232540726,0.05688,88057.0,88043.0,0.05645919]
[1767232543357,0.01067031,88056.0,88043.0,0.05645919]
[1767232543653,0.01067031,88055.0,88043.0,0.05645919]
[1767232543861,0.05688,88057.0,88043.0,0.05645919]
[1767232544005,0.01067031,88056.0,88043.0,0.05645919]
[1767232544204,0.01067031,88055.0,88043.0,0.05645919]
[1767232544458,0.05688,88057.0,88043.0,0.05645919]
[1767232544600,0.01067037,88056.0,88043.0,0.05645919]
[1767232544809,0.01067037,88055.0,88043.0,0.05645919]
[1767232545013,0.05688,88057.0,88043.0,0.05645919]
[1767232545268,0.01067043,88056.0,88043.0,0.05645919]
[1767232545569,0.01067043,88055.0,88043.0,0.05645919]
[1767232545771,0.05688,88057.0,88043.0,0.05645919]
[1767232545997,0.01067042,88056.0,88043.0,0.05645919]
[1767232546140,0.01067042,88055.0,88043.0,0.05645919]
[1767232546341,0.05688,88057.0,88043.0,0.05645919]
[1767232546543,0.01067054,88056.0,88043.0,0.05645919]
[1767232546768,0.05688,88057.0,88043.0,0.05645919]
[1767232546769,0.01067054,88055.0,88043.0,0.05645919]
[1767232546959,0.05688,88057.0,88043.0,0.05645919]
[1767232547163,0.01067053,88056.0,88043.0,0.05645919]
[1767232547485,0.05688,88057.0,88046.0,0.51187368]
[1767232547486,0.04548,88057.0,88046.0,0.51187368]
[1767232547777,0.00010588,88064.0,88046.0,0.51187368]
[1767232547778,0.0114,88055.0,88046.0,0.51187368]
[1767232547977,0.04548,88059.0,88042.0,0.12727779]
[1767232547978,0.0114,88054.0,88047.0,0.00013092]
[1767232548191,0.0114,88054.0,88044.0,0.51187368]
[1767232548949,0.0114,88054.0,88045.0,0.00012956]
[1767232552386,0.01040194,88053.0,88045.0,0.00012956]
[1767232552791,0.00010588,88064.0,88043.0,0.0006331]
[1767232553046,0.0114,88063.0,88051.0,0.00075539]
[1767232558545,0.0114,88063.0,88051.0,0.00020639]
[1767232559622,0.01066401,88062.0,88051.0,0.00020639]
[1767232559763,0.01066401,88061.0,88051.0,0.00020639]
[1767232559970,0.0114,88063.0,88051.0,0.00020639]
[1767232560173,0.01066401,88062.0,88051.0,0.00020639]
[1767232560368,0.01066401,88061.0,88051.0,0.00020639]
[1767232560572,0.0114,88063.0,88051.0,0.00020639]
[1767232560773,0.01066397,88062.0,88051.0,0.00020639]
[1767232560975,0.0114,88063.0,88051.0,0.00020639]
[1767232567342,0.0114,88063.0,88053.0,0.51174091]
[1767232567604,0.00985294,88063.0,88053.0,0.51352439]
[1767232567937,0.00985294,88063.0,88053.0,0.00178348]
[1767232568137,0.00985294,88063.0,88053.0,0.51352439]
[1767232572969,0.00985294,88063.0,88053.0,0.51174091]
[1767232582788,0.00885488,88063.0,88053.0,0.51174091]
[1767232585766,0.00885488,88063.0,88048.0,0.00238635]
[1767232585767,0.06465752,88063.0,88048.0,0.00238635]
[1767232586123,0.06465752,88063.0,88053.0,0.51174091]
[1767232586124,0.06271132,88063.0,88053.0,0.51174091]
[1767232591857,0.06171326,88063.0,88053.0,0.51174091]
[1767232603625,0.00591062,88063.0,88053.0,0.51174091]
[1767232608126,0.00491256,88063.0,88053.0,0.51174091]
[1767232612484,0.00491256,88063.0,88050.0,0.51174091]
[1767232612742,0.00291641,88063.0,88053.0,0.51174091]
[1767232613618,0.00191835,88063.0,88053.0,0.51174091]
[1767232614750,0.00092029,88063.0,88053.0,0.51174091]
[1767232615721,0.01028414,88062.0,88053.0,0.51174091]
[1767232616743,0.00928608,88062.0,88053.0,0.51174091]
[1767232617954,0.00828802,88062.0,88053.0,0.51174091]
[1767232618801,0.00728996,88062.0,88053.0,0.51174091]
[1767232619928,0.0062919,88062.0,88053.0,0.51174091]
[1767232621176,0.00474484,88062.0,88053.0,0.51174091]
[1767232621934,0.00374678,88062.0,88053.0,0.51174091]
[1767232622335,0.00374678,88062.0,88053.0,0.51790663]
[1767232623164,0.00374678,88062.0,88053.0,0.51174091]
[1767232623165,0.0017506,88062.0,88053.0,0.51174091]
[1767232624216,0.00075254,88062.0,88053.0,0.51174091]
[1767232624654,0.00075254,88062.0,88052.0,0.51163547]
[1767232625237,0.0101164,88061.0,88052.0,0.51163547]
[1767232626015,0.0101164,88061.0,88050.0,0.51163547]
[1767232626467,0.00911834,88061.0,88050.0,0.51163547]
[1767232627593,0.00812028,88061.0,88050.0,0.51163547]
[1767232628100,0.06155753,88060.0,88044.0,0.08201916]
[1767232628305,0.00812028,88061.0,88040.0,0.51163547]
[1767232628306,0.06210653,88050.0,88040.0,0.51163547]
[1767232628480,0.06110847,88050.0,88040.0,0.51163547]
[1767232629941,0.06011041,88050.0,88040.0,0.51163547]
[1767232630754,0.05911235,88050.0,88040.0,0.51163547]
[1767232631912,0.05811429,88050.0,88040.0,0.51163547]
[1767232632769,0.05711623,88050.0,88040.0,0.51163547]
[1767232633922,0.05711623,88050.0,88036.0,0.12727779]
[1767232633923,0.05611817,88050.0,88036.0,0.12727779]
[1767232634125,0.05611817,88050.0,88040.0,0.51163547]
[1767232638966,0.05611817,88050.0,88036.0,0.12727779]
[1767232639378,0.05611817,88050.0,88040.0,0.44875415]
[1767232642440,0.05611817,88050.0,88036.0,0.12727779]
[1767232642709,0.05611817,88050.0,88040.0,0.51163547]
[1767232643143,0.05611817,88050.0,88036.0,0.12727779]
[1767232645593,0.05611817,88050.0,88040.0,0.51163547]
[1767232645759,0.05611817,88050.0,88036.0,0.12727779]
[1767232660881,0.05611817,88050.0,88035.0,0.0001458]
[1767232660882,0.05686183,88049.0,88035.0,0.0001458]
[1767232661086,0.05686183,88049.0,88037.0,0.12727779]
[1767232661697,0.05686183,88049.0,88035.0,0.0001458]
[1767232675566,0.05686183,88049.0,88026.0,0.0001458]
[1767232675568,0.05640711,88044.0,88026.0,0.0001458]
[1767232675730,0.05640711,88039.0,88026.0,0.0001458]
[1767232675890,0.51163547,88040.0,88026.0,0.0001458]
[1767232675891,0.05660876,88037.0,88026.0,0.0001458]
[1767232676095,0.05688,88038.0,88026.0,0.0001458]
[1767232676096,0.05660876,88035.0,88026.0,0.0001458]
[1767232676281,0.05660876,88035.0,88015.0,0.03943273]
[1767232676639,0.0619335,88029.0,88009.0,0.06240467]
[1767232676859,0.0619335,88027.0,88009.0,0.06240467]
[1767232677064,0.06202564,88027.0,88009.0,0.06240467]
[1767232679811,0.06202564,88027.0,88010.0,0.51163547]
[1767232681782,0.06202564,88027.0,88011.0,0.06240467]
[1767232682011,9.214e-05,88027.0,88011.0,0.06240467]
[1767232683020,0.03426309,88039.0,88017.0,0.51163547]
[1767232683204,0.05688,88038.0,88027.0,9.2e-05]
[1767232683397,0.0619335,88037.0,88018.0,0.06240467]
[1767232684824,0.0619335,88037.0,88017.0,0.0003532]
[1767232686664,0.0619335,88037.0,88020.0,0.51219325]
[1767232687158,0.0619335,88037.0,88017.0,0.0003532]
[1767232690927,0.05688,88038.0,88017.0,0.0003532]
[1767232691101,0.0001458,88039.0,88038.0,0.000549]
[1767232691306,0.0570258,88039.0,88038.0,0.000549]
[1767232691528,0.0570258,88039.0,88029.0,0.63947104]
[1767232692312,0.0564768,88039.0,88029.0,0.63947104]
[1767232692507,0.0564768,88039.0,88029.0,0.63967104]
[1767232692706,0.03411387,88044.0,88029.0,0.63967104]
[1767232692910,0.05688,88043.0,88029.0,0.51239325]
[1767232693108,0.05688,88042.0,88029.0,0.51239325]
[1767232693314,0.05688,88041.0,88029.0,0.0002]
[1767232693520,0.0619335,88042.0,88030.0,0.51219325]
[1767232693733,0.05688,88041.0,88030.0,0.51219325]
[1767232693939,0.05688,88041.0,88031.0,0.06240467]
[1767232693940,0.05688,88040.0,88031.0,0.06240467]
[1767232694482,0.05688,88039.0,88031.0,0.06240467]
[1767232695030,0.0570486,88039.0,88031.0,0.06240467]
[1767232696631,0.000549,88031.0,88029.0,0.0002]
[1767232696905,0.0114,88030.0,88029.0,0.0002]
[1767232697814,0.01085,88030.0,88029.0,0.0002]
[1767232697957,0.0114,88030.0,88029.0,0.06260467]
[1767232699595,0.0001686,88035.0,88029.0,0.06260467]
[1767232699795,0.05688,88034.0,88029.0,0.06260467]
[1767232707321,0.05688,88034.0,88029.0,0.0002]
[1767232707515,0.05688,88034.0,88023.0,0.06330245]
[1767232707723,0.05688,88034.0,88018.0,0.06330245]
[1767232707871,0.05688,88034.0,88020.0,0.5754957]
[1767232708205,0.05688,88034.0,88021.0,0.06330245]
[1767232710211,0.05688,88034.0,88020.0,0.51219325]
[1767232710212,0.01065367,88033.0,88020.0,0.51219325]
[1767232710519,0.05688,88034.0,88020.0,0.51219325]
[1767232710520,0.01065386,88032.0,88020.0,0.51219325]
[1767232710716,0.05688,88034.0,88020.0,0.51219325]
[1767232710872,0.01065389,88033.0,88020.0,0.51219325]
[1767232711208,0.0106546,88032.0,88020.0,0.51219325]
[1767232711362,0.05688,88034.0,88020.0,0.51219325]
[1767232711564,0.0106546,88033.0,88020.0,0.51219325]
[1767232711757,0.0106546,88032.0,88020.0,0.51219325]
[1767232712021,0.0106546,88032.0,88017.0,0.0003532]
[1767232712022,0.000349,88020.0,88017.0,0.0003532]
[1767232712194,0.0114,88019.0,88010.0,0.06330245]
[1767232712393,0.01175286,88019.0,88010.0,0.06330245]
[1767232712556,0.01175286,88019.0,88002.0,0.000153]
[1767232712777,0.01175286,88019.0,88009.0,0.51219325]
[1767232713322,0.01175286,88019.0,88003.0,0.06330245]
[1767232716846,0.01175286,88019.0,88009.0,0.51219325]
[1767232718928,0.01175286,88019.0,88003.0,0.06330245]
[1767232719331,0.01175286,88019.0,88002.0,0.000153]
[1767232719498,0.01175286,88019.0,88002.0,0.06345545]
[1767232719499,0.07738381,88019.0,88002.0,0.06345545]
[1767232721233,0.01175286,88019.0,88010.0,0.06330245]
[1767232722414,0.01175286,88019.0,88010.0,0.05196937]
[1767232724108,0.05688,88018.0,88010.0,0.05196937]
[1767232725742,0.00035286,88019.0,88010.0,0.05196937]
[1767232725948,0.05688,88018.0,88010.0,0.05196937]
[1767232726793,0.00035286,88019.0,88010.0,0.05196937]
[1767232726997,0.05688,88017.0,88010.0,0.05196937]
[1767232728825,0.00035286,88019.0,88017.0,0.000553]
[1767232728967,0.00035286,88019.0,88010.0,0.05196937]
[1767232728968,0.0114,88018.0,88010.0,0.05196937]
[1767232729549,0.0114,88018.0,88010.0,0.06330245]
[1767232729881,0.010847,88018.0,88010.0,0.06330245]
[1767232735346,0.0114,88017.0,88010.0,0.06330245]
[1767232742169,8.524e-05,88016.0,88010.0,0.06330245]
[1767232747259,0.00035286,88019.0,88010.0,0.06330245]
[1767232747458,0.0114,88018.0,88014.0,0.0651541]
[1767232747657,0.0114,88018.0,88014.0,0.06526006]
[1767232749166,0.0114,88018.0,88014.0,0.00010596]
[1767232749388,0.01104458,88018.0,88009.0,0.0651541]
[1767232749599,0.01104458,88018.0,88009.0,0.06550696]
[1767232751607,0.00949752,88018.0,88009.0,0.06550696]
[1767232754688,0.00949752,88018.0,88009.0,0.06582046]
[1767232756988,0.07704953,88018.0,88000.0,0.0001475]
[1767232757302,0.07821396,88017.0,88000.0,0.0001475]
[1767232757485,0.06755201,88017.0,88000.0,0.0653016]
[1767232761530,0.06894555,88015.0,88000.0,0.0653016]
[1767232762814,0.06894555,88015.0,88000.0,0.0001475]
[1767232773288,0.04548,88014.0,88000.0,0.0001475]
[1767232773687,0.11442555,88014.0,88000.0,0.0001475]
[1767232787379,0.11442555,88014.0,88000.0,5e-07]
[1767232788850,0.06894555,88013.0,88000.0,5e-07]
[1767232802588,0.06894555,88013.0,88000.0,0.51230887]
[1767232802788,0.04548,88014.0,88000.0,0.58163534]
[1767232806546,0.11437715,88014.0,88004.0,0.51236399]
[1767232808678,0.11437715,88014.0,88000.0,0.58169096]
[1767232808940,0.06889715,88013.0,88000.0,0.51236449]
[1767232811804,0.06889715,88013.0,88003.0,0.51236399]
[1767232812004,0.06889715,88013.0,88000.0,0.51236449]
[1767232814663,0.04548,88014.0,88004.0,0.06932647]
[1767232814965,0.03938957,88014.0,88004.0,0.06932647]
[1767232815101,0.03938957,88014.0,88003.0,0.51236399]
[1767232820323,0.03938957,88014.0,87991.0,0.12727779]
[1767232820530,0.03938957,88014.0,87970.0,0.22734961]
[1767232820531,0.06987645,87990.0,87964.0,0.07366365]
[1767232820753,0.12727779,87992.0,87964.0,0.07366365]
[1767232820754,0.12727779,87992.0,87964.0,0.07196965]
[1767232820755,0.06987645,87977.0,87964.0,0.07196965]
[1767232820957,0.06987645,87977.0,87960.0,0.83508111]
[1767232820959,0.51236399,87974.0,87960.0,0.32271712]
[1767232821164,0.0114,87976.0,87960.0,0.32271712]
[1767232821165,0.06987645,87972.0,87960.0,0.32271712]
[1767232821370,0.12888046,87973.0,87960.0,0.32052712]
[1767232821371,0.08053076,87971.0,87960.0,0.32052712]
[1767232821585,0.06987645,87971.0,87960.0,0.32052712]
[1767232821792,0.06992853,87971.0,87960.0,0.32052712]
[1767232822410,0.06987645,87969.0,87960.0,0.30970154]
[1767232822558,0.51236399,87970.0,87960.0,0.18953044]
[1767232822559,0.04448595,87967.0,87960.0,0.18953044]
[1767232824502,0.02839567,87967.0,87960.0,0.18953044]
[1767232824938,0.01823319,87967.0,87960.0,0.18953044]
[1767232825266,0.05186606,87966.0,87960.0,0.18953044]
[1767232825404,0.0114,87965.0,87961.0,0.07331615]
[1767232825604,0.01787777,87971.0,87960.0,0.18953044]
[1767232825605,0.00620343,87964.0,87960.0,0.18953044]
[1767232825817,0.0114,87963.0,87961.0,0.07331615]
[1767232826849,0.0114,87962.0,87960.0,0.18953044]
[1767232827065,0.0114,87962.0,87961.0,0.07331615]
[1767232828903,0.0114,87962.0,87961.0,0.58568014]
[1767232835410,0.0114,87962.0,87961.0,0.07331615]
[1767232836694,0.0114,87964.0,87961.0,0.07331615]
[1767232838356,0.0114,87964.0,87961.0,0.07276715]
[1767232840333,0.010246,87964.0,87961.0,0.07276715]
[1767232848993,0.010246,87964.0,87960.0,0.18953044]
[1767232849392,0.010246,87964.0,87961.0,0.07331615]
[1767232850266,0.01064247,87963.0,87961.0,0.07331615]
[1767232850476,0.01064247,87962.0,87961.0,0.07331615]
[1767232850653,0.01009347,87962.0,87961.0,0.07331615]
[1767232851876,0.01009347,87962.0,87960.0,0.18953044]
[1767232852077,0.01145208,87971.0,87960.0,0.18953044]
[1767232854687,0.01145208,87971.0,87960.0,0.70189443]
[1767232855202,0.01145208,87971.0,87960.0,0.18953044]
[1767232855404,0.01145208,87971.0,87960.0,0.77924951]
[1767232857204,0.01145208,87971.0,87960.0,0.26688552]
[1767232857406,0.01145208,87971.0,87960.0,0.70079543]
[1767232857839,0.01145208,87971.0,87960.0,0.18843144]
[1767232859331,0.02276627,87969.0,87960.0,0.16566517]
[1767232859558,0.02452603,87968.0,87960.0,0.15825849]
[1767232859886,0.00017657,87969.0,87960.0,0.15825849]
[1767232860112,0.00017657,87967.0,87960.0,0.15825849]
[1767232862702,0.01064186,87966.0,87960.0,0.15825849]
[1767232862912,0.00052364,87964.0,87960.0,0.15825849]
[1767232863119,0.01782559,87968.0,87960.0,0.15825849]